bitfinex-derivatives/quotes_SOLF0:USTF0_20250426
["timestamp","ask_amount","ask_price","bid_price","bid_amount"]
[1745692249511,2.0389,149.03,148.99,8.12819658]
[1745692249809,8.12819658,149.05,149.01,8.12819658]
[1745692250413,6.7075,149.04,149.01,8.12819658]
[1745692251005,6.7075,149.04,149.02,8.12819658]
[1745692251210,6.7075,149.04,149.01,8.12819658]
[1745692257412,6.7075,149.04,149.01,14.83689658]
[1745692257913,6.7075,149.04,149.01,8.12819658]
[1745692258109,6.7075,149.04,149.02,8.12819658]
[1745692258315,6.7068,149.06,149.03,8.12819658]
[1745692258504,8.12819658,149.07,149.03,8.12819658]
[1745692258813,6.7069,149.06,149.03,8.12819658]
[1745692260212,31.54819658,149.08,149.04,8.12819658]
[1745692260515,8.12819658,149.07,149.03,8.12819658]
[1745692260714,6.7072,149.05,149.03,8.12819658]
[1745692261614,6.7074,149.04,149.02,8.12819658]
[1745692264416,6.7074,149.04,149.03,8.12819658]
[1745692269515,8.12819658,149.06,149.01,8.12819658]
[1745692270119,6.7081,149.03,149.01,8.12819658]
[1745692273523,8.12819658,149.05,149.0,8.12819658]
[1745692273824,8.12819658,149.03,148.99,8.12819658]
[1745692274225,6.7084,149.02,148.99,8.12819658]
[1745692274425,6.7084,149.02,149.0,8.12819658]
[1745692275733,6.7088,149.01,149.0,8.12819658]
[1745692275924,6.7088,149.01,148.99,8.12819658]
[1745692279333,6.7088,149.01,149.0,8.12819658]
[1745692279534,6.7088,149.01,148.99,8.12819658]
[1745692282438,10.05659658,149.04,149.0,14.83739658]
[1745692282636,1.9284,149.04,149.0,8.12819658]
[1745692283835,6.7081,149.03,149.0,8.12819658]
[1745692286441,6.7084,149.02,149.0,8.12819658]
[1745692292441,6.708,149.03,149.0,8.12819658]
[1745692292646,6.708,149.03,149.0,14.83739658]
[1745692292945,6.708,149.03,149.0,8.12819658]
[1745692295151,6.7084,149.02,149.0,8.12819658]
[1745692295447,6.7084,149.02,148.99,8.12819658]
[1745692297951,6.7084,149.02,148.99,14.83769658]
[1745692298150,6.7081,149.03,148.99,14.83769658]
[1745692299054,6.7084,149.02,148.99,14.83769658]
[1745692299346,8.12819658,149.03,148.98,31.54819658]
[1745692300151,6.709,149.01,148.98,31.54819658]
[1745692301153,6.709,149.01,148.98,38.25829658]
[1745692307559,6.709,149.01,148.99,8.12819658]
[1745692307960,6.7084,149.02,148.99,14.83769658]
[1745692308158,6.7084,149.02,149.0,8.12819658]
[1745692308361,23.42,149.08,149.01,8.12819658]
[1745692308555,6.7056,149.08,149.07,8.12819658]
[1745692309354,6.7056,149.08,149.06,8.12819658]
[1745692313561,6.7056,149.08,149.05,8.12819658]
[1745692319265,6.7056,149.08,149.06,8.12819658]
[1745692321465,6.7056,149.08,149.05,8.12819658]
[1745692321862,6.7061,149.07,149.05,8.12819658]
[1745692322073,8.12819658,149.08,149.04,8.12819658]
[1745692322367,8.12819658,149.08,149.03,8.12819658]
[1745692323571,6.707,149.05,149.03,8.12819658]
[1745692326469,6.7067,149.06,149.03,8.12819658]
[1745692326665,6.7067,149.06,149.04,8.12819658]
[1745692330673,6.707,149.05,149.04,8.12819658]
[1745692332672,6.7067,149.06,149.04,8.12819658]
[1745692333278,8.12819658,149.06,149.02,31.54819658]
[1745692333476,8.12819658,149.05,149.02,23.42]
[1745692333677,8.12819658,149.04,149.02,23.42]
[1745692333877,8.12819658,149.04,149.0,8.12819658]
[1745692335276,6.7079,149.03,149.0,14.83709658]
[1745692335680,8.12819658,149.04,149.0,14.83709658]
[1745692336373,6.7076,149.04,149.01,8.12819658]
[1745692336677,6.7076,149.04,149.01,14.83689658]
[1745692336878,8.12819658,149.06,149.02,8.12819658]
[1745692337977,14.83519658,149.06,149.02,8.12819658]
[1745692338177,6.707,149.06,149.02,8.12819658]
[1745692338477,6.707,149.06,149.03,8.12819658]
[1745692341772,8.12819658,149.07,149.03,8.12819658]
[1745692341977,25.5035,149.1,149.06,8.12819658]
[1745692342177,2.1035,149.1,149.08,8.12819658]
[1745692342676,14.83219658,149.12,149.08,14.83379658]
[1745692342875,6.704,149.12,149.09,8.12819658]
[1745692343178,14.83179658,149.13,149.09,14.83329658]
[1745692343673,14.83119658,149.14,149.1,8.12819658]
[1745692343884,6.703,149.14,149.11,8.12819658]
[1745692344275,6.7035,149.13,149.1,8.12819658]
[1745692344475,6.7035,149.13,149.09,8.12819658]
[1745692346481,6.7042,149.12,149.09,8.12819658]
[1745692346683,8.12819658,149.12,149.08,8.12819658]
[1745692346981,8.12819658,149.12,149.07,31.52819658]
[1745692347783,6.705,149.1,149.07,31.52819658]
[1745692348279,6.705,149.1,149.07,23.4]
[1745692348583,6.705,149.1,149.07,31.52819658]
[1745692350084,6.7054,149.09,149.07,31.52819658]
[1745692352187,8.12819658,149.08,148.96,482.8]
[1745692352382,8.12819658,149.05,149.01,8.12819658]
[1745692352582,8.12819658,149.06,149.01,31.52819658]
[1745692354087,6.7074,149.04,149.01,31.52819658]
[1745692355090,6.7074,149.04,149.01,38.23699658]
[1745692355488,6.7071,149.05,149.01,38.23699658]
[1745692355884,6.7071,149.05,149.02,6.7083]
[1745692357290,6.7071,149.05,149.02,14.83649658]
[1745692363196,8.12819658,149.05,149.01,31.52819658]
[1745692363387,8.12819658,149.04,149.01,23.4]
[1745692363592,8.12819658,149.02,148.97,23.4]
[1745692363792,8.12819658,149.0,148.97,23.4]
[1745692364198,8.12819658,149.01,148.97,23.4]
[1745692364393,8.12819658,149.01,148.97,31.52819658]
[1745692364998,14.83719658,149.01,148.98,6.71]
[1745692365205,6.709,149.01,148.97,31.52819658]
[1745692366098,6.709,149.01,148.98,6.7101]
[1745692366300,6.709,149.01,148.97,31.52819658]
[1745692366490,6.709,149.01,148.97,38.23839658]
[1745692367902,6.7093,149.0,148.97,38.23839658]
[1745692368603,6.7097,148.99,148.97,31.52819658]
[1745692369099,8.12819658,149.02,148.97,31.52819658]
[1745692369800,8.12819658,149.01,148.97,31.52819658]
[1745692370202,6.7094,149.0,148.97,31.52819658]
[1745692372006,6.7094,149.0,148.97,38.23859658]
[1745692375006,6.7094,149.0,148.97,31.52819658]
[1745692378915,6.7094,149.0,148.98,8.12819658]
[1745692379211,8.12819658,149.02,148.98,8.12819658]
[1745692379913,6.7093,149.0,148.98,8.12819658]
[1745692381618,6.7093,149.0,148.97,31.52819658]
[1745692385421,6.7093,149.0,148.97,38.23869658]
[1745692389119,8.12819658,148.99,148.97,23.4]
[1745692389325,8.12819658,148.98,148.93,23.42]
[1745692389526,8.12819658,148.96,148.93,23.42]
[1745692390021,14.83959658,148.96,148.93,23.42]
[1745692390817,6.7115,148.95,148.93,23.42]
[1745692393727,14.83969658,148.95,148.93,23.42]
[1745692395828,8.12819658,148.95,148.93,23.42]
[1745692396032,8.12819658,148.96,148.93,23.42]
[1745692396236,8.12819658,148.97,148.93,31.54819658]
[1745692396433,8.12819658,148.97,148.94,6.7116]
[1745692397733,14.83859658,148.98,148.94,6.7116]
[1745692397933,14.83859658,148.98,148.94,14.83979658]
[1745692398233,6.7107,148.97,148.94,14.83979658]
[1745692401843,10.10949658,149.0,148.96,8.12819658]
[1745692402046,33.46519658,149.01,148.97,8.12819658]
[1745692402340,10.04519658,149.01,148.97,8.12819658]
[1745692403436,6.7099,148.99,148.97,8.12819658]
[1745692404140,1.917,149.01,148.98,8.12819658]
[1745692404441,1.917,149.01,148.99,8.12819658]
[1745692405845,8.6259,149.01,148.99,8.12819658]
[1745692407546,1.917,149.01,148.99,14.83779658]
[1745692407747,6.7085,149.02,149.0,8.12819658]
[1745692410551,6.708,149.03,149.0,8.12819658]
[1745692411150,6.7084,149.02,149.0,8.12819658]
[1745692412353,6.708,149.03,149.01,8.12819658]
[1745692412651,1.9584,149.05,149.02,8.12819658]
[1745692414152,6.7077,149.04,149.02,8.12819658]
[1745692419254,6.7077,149.04,149.01,31.52819658]
[1745692421159,1.9584,149.05,149.01,31.52819658]
[1745692421450,10.18499658,149.08,149.03,8.12819658]
[1745692421653,6.7057,149.07,149.05,8.12819658]
[1745692422066,6.7057,149.07,149.04,8.12819658]
[1745692423157,8.12819658,149.08,149.04,8.12819658]
[1745692423158,6.7058,149.06,149.04,8.12819658]
[1745692424756,6.7063,149.05,149.03,8.12819658]
[1745692426159,8.12819658,149.06,149.02,8.12819658]
[1745692426559,6.707,149.04,149.02,8.12819658]
[1745692431768,6.707,149.04,149.01,31.52819658]
[1745692434066,6.707,149.04,149.01,38.23609658]
[1745692434469,6.7065,149.05,149.01,31.52819658]
[1745692434668,6.7065,149.05,149.02,14.83579658]
[1745692434869,8.12819658,149.07,149.02,8.12819658]
[1745692435166,14.83399658,149.07,149.03,8.12819658]
[1745692435367,8.12819658,149.07,149.03,14.83509658]
[1745692436267,6.706,149.06,149.03,14.83509658]
[1745692438168,8.12819658,149.07,149.03,14.83509658]
[1745692438169,8.12819658,149.08,149.03,8.12819658]
[1745692438364,8.12819658,149.08,149.04,8.12819658]
[1745692438770,14.83339658,149.08,149.05,6.7063]
[1745692439866,6.7054,149.07,149.03,8.12819658]
[1745692440170,14.83359658,149.07,149.03,8.12819658]
[1745692440371,14.83359658,149.07,149.03,14.83509658]
[1745692442379,14.83329658,149.08,149.04,6.7066]
[1745692442571,14.83329658,149.08,149.03,8.12819658]
[1745692442880,14.83329658,149.08,149.04,6.7064]
[1745692443772,6.7054,149.07,149.04,6.7064]
[1745692445871,14.83329658,149.08,149.04,6.7064]
[1745692446169,8.12819658,149.08,149.04,8.12819658]
[1745692446574,14.83339658,149.08,149.05,6.706]
[1745692446770,14.83339658,149.08,149.04,8.12819658]
[1745692447076,14.83339658,149.08,149.04,14.83469658]
[1745692448776,14.83339658,149.08,149.05,6.7063]
[1745692450078,6.7055,149.07,149.04,14.83479658]
[1745692450274,6.7055,149.07,149.04,8.12819658]
[1745692450878,6.7061,149.06,149.04,8.12819658]
[1745692451074,8.12819658,149.06,149.01,31.52819658]
[1745692451275,2.0773,149.09,149.01,31.52819658]
[1745692451276,8.12819658,149.05,149.01,23.4]
[1745692451679,8.12819658,149.04,149.01,23.4]
[1745692452075,6.7076,149.03,149.01,23.4]
[1745692452581,6.7076,149.02,149.01,23.4]
[1745692453278,14.83559658,149.03,149.01,23.4]
[1745692458182,8.12819658,149.04,149.01,30.1077]
[1745692458378,8.12819658,149.05,149.01,23.4]
[1745692458881,8.12819658,149.05,149.02,6.7075]
[1745692460291,14.83449658,149.05,149.02,6.7075]
[1745692460689,14.83449658,149.05,149.02,14.83569658]
[1745692460690,6.7063,149.05,149.02,14.83569658]
[1745692462892,8.12819658,149.04,149.01,23.4]
[1745692463191,8.12819658,149.03,149.01,23.4]
[1745692463398,10.15499658,149.04,149.01,23.4]
[1745692464290,16.86189658,149.04,149.01,30.108]
[1745692464490,10.15499658,149.04,149.01,30.108]
[1745692468597,16.86179658,149.04,149.01,23.4]
[1745692468892,10.15499658,149.04,149.01,23.4]
[1745692470302,6.7072,149.03,149.01,23.4]
[1745692471185,16.86179658,149.04,149.01,23.4]
[1745692471485,8.7336,149.04,149.01,23.4]
[1745692473297,8.7336,149.04,149.01,30.1081]
[1745692474199,8.7336,149.04,149.01,23.4]
[1745692475295,8.7336,149.04,149.01,30.1081]
[1745692475600,8.7336,149.04,149.01,38.23629658]
[1745692479604,8.7336,149.04,149.01,30.1081]
[1745692480803,6.7073,149.03,149.01,23.4]
[1745692481002,10.15499658,149.04,148.99,8.12819658]
[1745692481297,8.12819658,149.01,148.98,23.4]
[1745692481501,14.83629658,149.01,148.98,23.4]
[1745692482904,14.83629658,149.01,148.98,30.1094]
[1745692483402,14.83629658,149.01,148.98,38.23759658]
[1745692484305,6.7081,149.01,148.98,38.23759658]
[1745692486508,14.83599658,149.02,148.99,14.83699658]
[1745692486707,6.7078,149.02,149.0,8.12819658]
[1745692491414,14.83559658,149.03,149.0,8.12819658]
[1745692491609,2.0598,149.06,149.02,8.12819658]
[1745692492014,10.18799658,149.06,149.02,8.12819658]
[1745692492614,2.0598,149.06,149.02,8.12819658]
[1745692492816,2.0598,149.06,149.03,8.12819658]
[1745692493116,8.7658,149.06,149.03,8.12819658]
[1745692493418,2.0598,149.06,149.03,8.12819658]
[1745692493815,6.7066,149.05,149.03,8.12819658]
[1745692494016,6.7066,149.05,149.02,8.12819658]
[1745692494817,6.7068,149.04,149.02,8.12819658]
[1745692495216,6.7068,149.04,149.01,14.83609658]
[1745692497016,6.7068,149.04,149.01,8.12819658]
[1745692497515,6.7068,149.04,149.01,14.83619658]
[1745692497716,6.7068,149.04,149.01,38.23619658]
[1745692501721,6.7065,149.05,149.02,6.7076]
[1745692502429,6.7065,149.05,149.02,14.83579658]
[1745692503324,6.7065,149.05,149.02,8.12819658]
[1745692503621,6.7069,149.04,149.02,8.12819658]
[1745692503823,31.52819658,149.07,149.02,8.12819658]
[1745692504031,23.4,149.07,149.03,8.12819658]
[1745692504220,10.23519658,149.08,149.04,8.12819658]
[1745692504624,6.7058,149.07,149.04,8.12819658]
[1745692507924,8.812,149.08,149.05,8.12819658]
[1745692509224,8.812,149.08,149.05,14.83439658]
[1745692509423,8.812,149.08,149.05,8.12819658]
[1745692510123,2.107,149.08,149.04,8.12819658]
[1745692510423,8.12819658,149.05,149.0,31.52819658]
[1745692510724,8.12819658,149.05,149.01,8.12819658]
[1745692511022,6.7071,149.04,149.01,8.12819658]
[1745692511224,8.12819658,149.05,149.01,8.12819658]
[1745692511423,6.7068,149.04,149.01,8.12819658]
[1745692513223,6.7075,149.03,149.01,8.12819658]
[1745692514320,6.7075,149.03,149.01,14.83629658]
[1745692514625,6.7069,149.04,149.01,14.83629658]
[1745692515719,6.7069,149.04,149.01,6.7081]
[1745692515925,6.7069,149.04,149.02,8.12819658]
[1745692518727,10.20279658,149.07,149.03,8.12819658]
[1745692519029,2.0746,149.07,149.04,8.12819658]
[1745692519226,2.0746,149.07,149.03,8.12819658]
[1745692519725,6.7061,149.06,149.03,8.12819658]
[1745692519929,2.107,149.08,149.05,8.12819658]
[1745692520329,8.8122,149.08,149.05,8.12819658]
[1745692524533,2.107,149.08,149.05,14.83439658]
[1745692525932,8.8122,149.08,149.05,8.12819658]
[1745692531442,6.7055,149.07,149.05,8.12819658]
[1745692531642,8.12819658,149.09,149.05,8.12819658]
[1745692532142,6.705,149.08,149.05,8.12819658]
[1745692532339,8.12819658,149.09,149.05,8.12819658]
[1745692533244,6.7056,149.07,149.05,8.12819658]
[1745692534243,6.7056,149.07,149.04,38.23489658]
[1745692536541,6.7051,149.08,149.05,14.83439658]
[1745692538943,6.7051,149.08,149.06,8.12819658]
[1745692539247,1.9115,149.11,149.07,8.12819658]
[1745692539442,1.9115,149.11,149.08,8.12819658]
[1745692539639,8.6152,149.11,149.08,8.12819658]
[1745692540347,6.7041,149.1,149.08,8.12819658]
[1745692540647,6.7041,149.1,149.07,14.83319658]
[1745692541645,6.7041,149.1,149.07,8.12819658]
[1745692544554,6.7046,149.09,149.07,8.12819658]
[1745692544746,10.03969658,149.11,149.07,8.12819658]
[1745692544954,8.12819658,149.09,149.05,8.12819658]
[1745692545252,6.7058,149.06,149.04,31.52819658]
[1745692555862,6.7055,149.07,149.04,31.52819658]
[1745692557863,6.7055,149.07,149.04,38.23489658]
[1745692564367,6.7055,149.07,149.04,31.52819658]
[1745692566966,6.7058,149.06,149.04,31.52819658]
[1745692567867,6.7056,149.07,149.04,31.52819658]
[1745692568668,6.7063,149.05,149.04,23.4]
[1745692568968,8.12819658,149.06,149.01,31.50819658]
[1745692569466,8.12819658,149.04,149.01,23.38]
[1745692569859,8.12819658,149.04,149.01,31.50819658]
[1745692570069,8.12819658,149.05,149.01,31.50819658]
[1745692570461,6.7068,149.04,149.01,38.21599658]
[1745692570665,8.12819658,149.05,149.01,38.21599658]
[1745692571167,14.83479658,149.05,149.01,38.21599658]
[1745692574171,6.7067,149.04,149.01,31.50819658]
[1745692577475,6.7072,149.03,149.01,31.50819658]
[1745692578875,6.7069,149.04,149.01,31.50819658]
[1745692580079,6.7073,149.03,149.01,31.50819658]
[1745692581678,6.7073,149.03,149.01,23.38]
[1745692581875,6.7073,149.03,149.01,31.50819658]
[1745692584878,14.83509658,149.04,149.01,31.50819658]
[1745692585078,6.7069,149.04,149.01,31.50819658]
[1745692590679,6.7072,149.03,149.01,31.50819658]
[1745692591379,8.12819658,149.03,148.98,8.12819658]
[1745692591575,8.12819658,149.0,148.96,23.38]
[1745692591775,8.12819658,148.99,148.96,23.38]
[1745692593288,6.7095,148.98,148.96,23.38]
[1745692593987,6.7099,148.97,148.96,23.38]
[1745692594380,8.12819658,148.98,148.94,8.12819658]
[1745692594381,14.83769658,148.98,148.94,14.83909658]
[1745692594679,6.7095,148.98,148.94,8.12819658]
[1745692595286,6.7095,148.98,148.95,6.7108]
[1745692595788,6.7095,148.98,148.94,14.83919658]
[1745692599088,6.71,148.97,148.94,14.83919658]
[1745692602487,8.12819658,148.99,148.94,14.83919658]
[1745692602488,6.7096,148.98,148.94,14.83919658]
[1745692603985,14.83739658,148.99,148.95,6.7108]
[1745692609990,6.7095,148.98,148.95,6.7108]
[1745692614296,6.7099,148.97,148.95,6.7108]
[1745692614497,6.7099,148.97,148.94,14.83929658]
[1745692623107,8.12819658,148.99,148.94,14.83929658]
[1745692623108,6.7096,148.98,148.94,14.83929658]
[1745692624941,8.12819658,149.01,148.97,8.12819658]
[1745692625626,6.7093,148.99,148.97,8.12819658]
[1745692626120,6.7093,148.99,148.96,8.12819658]
[1745692629315,6.7093,148.99,148.96,14.83839658]
[1745692634323,6.7093,148.99,148.97,8.12819658]
[1745692647143,6.7099,148.97,148.95,31.50819658]
[1745692647337,8.12819658,148.99,148.95,31.50819658]
[1745692647642,14.83689658,149.0,148.96,14.83819658]
[1745692647836,6.7087,149.0,148.96,14.83819658]
[1745692648343,6.7087,149.0,148.96,8.12819658]
[1745692649247,6.7087,149.0,148.97,6.7099]
[1745692649443,6.709,148.99,148.96,8.12819658]
[1745692649647,6.709,148.99,148.95,31.50819658]
[1745692649945,6.709,148.99,148.95,23.38]
[1745692650242,6.709,148.99,148.95,31.50819658]
[1745692650444,6.709,148.99,148.95,38.21869658]
[1745692650739,6.709,148.99,148.95,31.50819658]
[1745692651347,6.709,148.99,148.95,38.21879658]
[1745692652947,6.709,148.99,148.96,6.7102]
[1745692654340,6.709,148.99,148.96,14.83839658]
[1745692658655,6.709,148.99,148.96,8.12819658]
[1745692659248,6.709,148.99,148.95,38.21879658]
[1745692663757,6.709,148.99,148.96,6.7103]
[1745692667358,6.7087,149.0,148.97,14.83809658]
[1745692670563,6.7092,148.99,148.97,8.12819658]
[1745692670858,6.7092,148.99,148.96,8.12819658]
[1745692671561,6.7092,148.99,148.95,38.21869658]
[1745692673463,8.12819658,148.99,148.95,31.50819658]
[1745692673662,8.12819658,148.97,148.95,23.38]
[1745692673865,8.12819658,148.96,148.92,23.38]
[1745692674163,6.7113,148.94,148.91,31.50819658]
[1745692674665,4.0867,148.98,148.91,23.38]
[1745692674866,14.84029658,148.92,148.88,506.52]
[1745692675159,14.84029658,148.92,148.88,31.50819658]
[1745692675663,6.7126,148.91,148.88,31.50819658]
[1745692676068,14.84049658,148.92,148.88,31.50819658]
[1745692676261,6.7123,148.92,148.88,31.50819658]
[1745692676763,6.7123,148.92,148.88,38.22209658]
[1745692679169,6.7123,148.92,148.89,8.12819658]
[1745692680366,6.7126,148.91,148.89,8.12819658]
[1745692682467,6.7123,148.92,148.89,8.12819658]
[1745692682666,8.12819658,148.93,148.89,8.12819658]
[1745692684068,6.7125,148.92,148.89,8.12819658]
[1745692686466,6.7125,148.92,148.89,14.84159658]
[1745692686672,6.7119,148.93,148.9,8.12819658]
[1745692688872,6.7122,148.92,148.9,8.12819658]
[1745692696368,6.7129,148.91,148.89,8.12819658]
[1745692696565,8.12819658,148.92,148.88,31.50819658]
[1745692696770,10.03179658,148.92,148.88,23.38]
[1745692697671,8.12819658,148.91,148.81,485.1695]
[1745692697975,8.12819658,148.9,148.85,8.12819658]
[1745692698574,6.7137,148.89,148.85,14.84339658]
[1745692698879,10.03179658,148.92,148.87,8.12819658]
[1745692699072,6.7129,148.91,148.88,14.84209658]
[1745692699269,6.7129,148.91,148.88,8.12819658]
[1745692701778,6.7129,148.91,148.88,14.84199658]
[1745692701991,6.7129,148.91,148.88,8.12819658]
[1745692706979,6.7129,148.91,148.87,6.7142]
[1745692707283,6.7129,148.91,148.87,14.84239658]
[1745692708180,6.7129,148.91,148.88,6.7139]
[1745692709776,8.6159,148.92,148.88,14.84209658]
[1745692710078,8.12819658,148.95,148.9,8.12819658]
[1745692710280,6.7115,148.94,148.9,8.12819658]
[1745692710482,8.12819658,148.95,148.9,8.12819658]
[1745692710777,8.12819658,148.94,148.9,8.12819658]
[1745692711280,6.7118,148.93,148.9,14.84089658]
[1745692713082,8.12819658,148.94,148.9,14.84089658]
[1745692713083,6.7113,148.94,148.91,8.12819658]
[1745692713284,6.7113,148.94,148.92,8.12819658]
[1745692718487,6.711,148.95,148.92,8.12819658]
[1745692719794,6.7113,148.94,148.92,8.12819658]
[1745692724297,6.711,148.95,148.92,8.12819658]
[1745692727003,6.711,148.95,148.92,14.84029658]
[1745692729703,6.711,148.95,148.92,8.12819658]
[1745692731307,6.711,148.95,148.92,14.84029658]
[1745692731603,6.711,148.95,148.92,8.12819658]
[1745692732602,6.7113,148.94,148.92,8.12819658]
[1745692733207,6.711,148.95,148.92,8.12819658]
[1745692734207,6.7114,148.94,148.92,8.12819658]
[1745692734502,33.63319658,148.96,148.92,8.12819658]
[1745692734708,33.63319658,148.96,148.92,14.84029658]
[1745692734906,6.7111,148.95,148.92,8.12819658]
[1745692740319,6.7113,148.94,148.92,8.12819658]
[1745692749318,10.23319658,148.96,148.92,14.84029658]
[1745692749619,2.105,148.96,148.93,8.12819658]
[1745692749819,2.108,148.98,148.94,8.12819658]
[1745692750320,6.7102,148.97,148.94,8.12819658]
[1745692750819,6.7108,148.95,148.9,23.4]
[1745692751019,8.12819658,148.95,148.91,8.12819658]
[1745692751322,6.7133,148.9,148.87,23.38]
[1745692751625,8.12819658,148.89,148.87,23.38]
[1745692751812,8.12819658,148.88,148.84,31.50819658]
[1745692752014,6.7148,148.87,148.84,23.38]
[1745692752215,8.12819658,148.88,148.84,23.38]
[1745692752820,6.7148,148.87,148.84,23.38]
[1745692753022,8.12819658,148.88,148.84,30.0957]
[1745692753220,8.12819658,148.88,148.84,31.50819658]
[1745692753522,8.12819658,148.88,148.84,23.38]
[1745692753720,8.12819658,148.87,148.84,23.38]
[1745692754417,6.7152,148.86,148.84,23.38]
[1745692754623,8.12819658,148.88,148.84,23.38]
[1745692755529,6.7147,148.87,148.84,23.38]
[1745692756222,8.12819658,148.88,148.84,31.50819658]
[1745692756424,8.12819658,148.89,148.85,8.12819658]
[1745692757125,6.714,148.88,148.85,8.12819658]
[1745692758223,6.714,148.88,148.85,14.84349658]
[1745692763330,2.0755,148.9,148.87,8.12819658]
[1745692763624,2.0755,148.9,148.88,8.12819658]
[1745692765227,8.7888,148.9,148.87,8.12819658]
[1745692765422,2.0755,148.9,148.84,23.38]
[1745692765725,6.7144,148.87,148.84,31.50819658]
[1745692765926,8.12819658,148.88,148.84,31.50819658]
[1745692766426,14.84249658,148.88,148.84,38.22389658]
[1745692769326,6.7143,148.88,148.85,8.12819658]
[1745692769827,6.7143,148.88,148.86,8.12819658]
[1745692770126,2.0755,148.9,148.87,8.12819658]
[1745692771330,8.7887,148.9,148.87,14.84259658]
[1745692772932,14.84089658,148.91,148.88,8.12819658]
[1745692773130,8.12819658,148.93,148.9,8.12819658]
[1745692773333,33.62709658,148.94,148.9,8.12819658]
[1745692773632,23.4,148.97,148.93,8.12819658]
[1745692773833,23.4,148.99,148.94,8.12819658]
[1745692774033,31.52819658,148.99,148.94,8.12819658]
[1745692774830,6.7104,148.96,148.94,8.12819658]
[1745692784043,6.71,148.97,148.95,8.12819658]
[1745692786237,6.7096,148.98,148.94,6.7112]
[1745692786539,14.22529658,149.01,148.97,8.12819658]
[1745692786732,6.709,148.99,148.98,8.12819658]
[1745692788845,6.709,148.99,148.97,8.12819658]
[1745692793551,6.7094,148.98,148.97,8.12819658]
[1745692794548,6.7094,148.98,148.96,8.12819658]
[1745692801755,2.1006,149.01,148.97,8.12819658]
[1745692801953,2.1006,149.01,148.98,8.12819658]
[1745692802153,6.7088,149.0,148.98,8.12819658]
[1745692802556,2.1006,149.01,148.98,8.12819658]
[1745692803656,8.8087,149.01,148.98,8.12819658]
[1745692803853,2.1006,149.01,148.98,8.12819658]
[1745692805256,6.7086,149.0,148.98,8.12819658]
[1745692811268,6.709,148.99,148.98,8.12819658]
[1745692811466,10.22879658,149.01,148.97,8.12819658]
[1745692811669,10.22879658,149.01,148.96,23.56]
[1745692811670,8.12819658,148.99,148.96,23.56]
[1745692812469,6.7099,148.97,148.96,23.56]
[1745692812864,8.12819658,148.98,148.94,8.12819658]
[1745692813069,6.7108,148.95,148.93,31.68819658]
[1745692813274,8.12819658,148.97,148.93,31.68819658]
[1745692813573,6.7107,148.96,148.94,8.12819658]
[1745692820176,6.7101,148.97,148.94,8.12819658]
[1745692821475,6.7104,148.96,148.94,8.12819658]
[1745692822173,6.7104,148.96,148.93,30.2716]
[1745692822378,6.7104,148.96,148.93,31.68819658]
[1745692824477,6.7101,148.97,148.93,38.39979658]
[1745692824672,14.83829658,148.97,148.93,38.39979658]
[1745692825177,6.7104,148.96,148.93,38.39979658]
[1745692829278,6.7104,148.96,148.94,8.12819658]
[1745692832176,8.12819658,148.97,148.93,31.68819658]
[1745692832378,8.12819658,148.96,148.93,23.56]
[1745692832678,8.12819658,148.94,148.9,23.44]
[1745692832976,8.12819658,148.92,148.9,23.44]
[1745692834278,14.84039658,148.92,148.9,23.44]
[1745692837779,14.84009658,148.93,148.9,31.56819658]
[1745692837981,6.7119,148.93,148.9,31.56819658]
[1745692839881,6.7122,148.92,148.9,31.56819658]
[1745692843780,10.19149658,148.95,148.91,8.12819658]
[1745692844081,2.0633,148.95,148.92,8.12819658]
[1745692844383,6.7104,148.96,148.93,8.12819658]
[1745692844584,31.56819658,148.97,148.93,8.12819658]
[1745692845285,6.7108,148.95,148.93,8.12819658]
[1745692845586,6.7108,148.95,148.92,8.12819658]
[1745692846482,6.7108,148.95,148.9,23.44]
[1745692846483,8.12819658,148.98,148.94,8.12819658]
[1745692846785,8.12819658,148.98,148.95,8.12819658]
[1745692846989,6.7102,148.97,148.94,8.12819658]
[1745692848187,6.7104,148.96,148.93,8.12819658]
[1745692850381,6.7104,148.96,148.93,14.83969658]
[1745692851386,6.7104,148.96,148.93,8.12819658]
[1745692852586,6.7104,148.96,148.93,14.83979658]